fUST/lending_fUST_20260625
["ID","MTS","AMOUNT","RATE_DAILY","PERIOD"]
[426335425,1782321046000,-156.26137423,0.00025512,2]
[426335422,1782321046000,-164.02249609,0.00023,2]
[426335421,1782321046000,-165.637021,0.00022746,2]
[426335423,1782321046000,-160.0,0.00024899,2]
[426335424,1782321046000,-233.590256,0.000254,2]
[426335426,1782321046000,-156.26137423,0.00025512,2]
[426335413,1782321046000,-350.4,0.0002136,3]
[426335415,1782321046000,-165.637021,0.00021428,2]
[426335416,1782321046000,-13048.264083,0.000215,2]
[426335429,1782321046000,-160.0,0.00025524,2]
[426335439,1782321046000,-160.0,0.00027182,2]
[426335530,1782321046000,-5532.5660543,0.00038739,2]
[426335544,1782321046000,-500.0,0.00038798,60]
[426335524,1782321046000,-151.0,0.00038698,120]
[426335558,1782321046000,-217.06053015,0.00038798,2]
[426335559,1782321046000,-248.06917732,0.00038798,2]
[426335571,1782321046000,-342.14343504,0.00039,120]
[426335574,1782321046000,-173.28,0.00039102,2]
[426335572,1782321046000,-1224.29853199,0.00039,120]
[426335557,1782321046000,-500.11111592,0.00038798,2]
[426335568,1782321046000,-160.0,0.00038871,2]
[426335564,1782321046000,-250.0,0.00038838,54]
[426335563,1782321046000,-260.52,0.000388,120]
[426335566,1782321046000,-160.0,0.00038871,2]
[426335561,1782321046000,-387.60808956,0.00038798,2]
[426335570,1782321046000,-347.37372895,0.00039,120]
[426335576,1782321046000,-280.456104,0.000392,2]
[426335580,1782321046000,-176.82896378,0.00039301,7]
[426335581,1782321046000,-600.0,0.00039369,60]
[426335579,1782321046000,-260.52,0.000393,120]
[426335583,1782321046000,-3222.69677861,0.000396,30]
[426335582,1782321046000,-139167.44951372,0.000396,30]
[426335521,1782321046000,-160.0,0.00038685,2]
[426335556,1782321046000,-313.14342146,0.00038798,2]
[426335555,1782321046000,-413.06,0.00038798,60]
[426335578,1782321046000,-604.4,0.000393,2]
[426335549,1782321046000,-500.0,0.00038798,60]
[426335527,1782321046000,-151.0,0.000387,10]
[426335543,1782321046000,-500.0,0.00038798,60]
[426335533,1782321046000,-1200.0,0.00038767,120]
[426335535,1782321046000,-302.86740762,0.00038767,120]
[426335541,1782321046000,-500.0,0.00038798,60]
[426335539,1782321046000,-500.0,0.00038797,60]
[426335537,1782321046000,-500.0,0.00038796,60]
[426335540,1782321046000,-500.0,0.00038797,60]
[426335542,1782321046000,-500.0,0.00038798,60]
[426335538,1782321046000,-500.0,0.00038797,60]
[426335552,1782321046000,-500.0,0.00038798,60]
[426335554,1782321046000,-500.0,0.00038798,60]
[426335584,1782321046000,500.0,0.00139922,120]
[426335550,1782321046000,-500.0,0.00038798,60]
[426335547,1782321046000,-500.0,0.00038798,60]
[426335551,1782321046000,-500.0,0.00038798,60]
[426335553,1782321046000,-500.0,0.00038798,60]
[426335548,1782321046000,-500.0,0.00038798,60]
[426335546,1782321046000,-500.0,0.00038798,60]
[426335545,1782321046000,-500.0,0.00038798,60]
[426335586,1782321047000,-5983.41623803,0.000396,30]
[426335587,1782321047000,500.0,0.00139922,120]
[426335585,1782321047000,-14653.63057115,0.000396,30]
[426335589,1782321047000,-3500.49068278,0.000396,30]
[426335590,1782321047000,-193799.99999999,0.000396,30]
[426335588,1782321047000,238.36613426,0.00139922,120]
[426335607,1782321057000,-1915.9094444,0.00039999,31]
[426335612,1782321057000,-1915.9094444,0.00039999,31]
[426335613,1782321057000,-314.72910892,0.00039999,31]
[426335611,1782321057000,-1915.9094444,0.00039999,31]
[426335614,1782321057000,-1915.9094444,0.00039999,31]
[426335610,1782321057000,-1915.9094444,0.00039999,31]
[426335608,1782321057000,-1915.9094444,0.00039999,31]
[426335606,1782321057000,-1915.9094444,0.00039999,31]
[426335609,1782321057000,-1915.9094444,0.00039999,31]
[426335605,1782321057000,-1915.9094444,0.00039999,31]
[426335604,1782321057000,-1915.9094444,0.00039999,31]
[426335591,1782321057000,-2428375.68797165,0.000396,30]
[426335601,1782321057000,-1915.9094444,0.00039999,31]
[426335599,1782321057000,-1915.9094444,0.00039999,31]
[426335594,1782321057000,-500.0,0.00039999,31]
[426335596,1782321057000,-1915.9094444,0.00039999,31]
[426335595,1782321057000,-1915.9094444,0.00039999,31]
[426335597,1782321057000,-1915.9094444,0.00039999,31]
[426335598,1782321057000,-1915.9094444,0.00039999,31]
[426335600,1782321057000,-1915.9094444,0.00039999,31]
[426335593,1782321057000,-260.52,0.000398,120]
[426335602,1782321057000,-1915.9094444,0.00039999,31]
[426335592,1782321057000,-384.6824448,0.000397,120]
[426335616,1782321057000,-1915.9094444,0.00039999,31]
[426335603,1782321057000,-1915.9094444,0.00039999,31]
[426335618,1782321057000,-1915.9094444,0.00039999,31]
[426335615,1782321057000,-1915.9094444,0.00039999,31]
[426335619,1782321057000,-1915.9094444,0.00039999,31]
[426335617,1782321057000,-1915.9094444,0.00039999,31]
[426335643,1782321057000,-2485169.38990214,0.0004,30]
[426335644,1782321057000,-200.35933965,0.0004,30]
[426335642,1782321057000,-15188.94040453,0.0004,40]
[426335641,1782321057000,-1915.9094444,0.00039999,31]
[426335640,1782321057000,-1915.9094444,0.00039999,31]
[426335639,1782321057000,-1915.9094444,0.00039999,31]
[426335638,1782321057000,-1915.9094444,0.00039999,31]
[426335631,1782321057000,-1915.9094444,0.00039999,31]
[426335633,1782321057000,-1915.9094444,0.00039999,31]
[426335634,1782321057000,-1915.9094444,0.00039999,31]
[426335635,1782321057000,-1915.9094444,0.00039999,31]
[426335637,1782321057000,-1915.9094444,0.00039999,31]
[426335632,1782321057000,-1915.9094444,0.00039999,31]
[426335621,1782321057000,-1915.9094444,0.00039999,31]
[426335636,1782321057000,-1915.9094444,0.00039999,31]
[426335620,1782321057000,-1915.9094444,0.00039999,31]
[426335623,1782321057000,-1915.9094444,0.00039999,31]
[426335624,1782321057000,-1915.9094444,0.00039999,31]
[426335625,1782321057000,-1915.9094444,0.00039999,31]
[426335622,1782321057000,-1915.9094444,0.00039999,31]
[426335629,1782321057000,-1915.9094444,0.00039999,31]
[426335630,1782321057000,-1915.9094444,0.00039999,31]
[426335626,1782321057000,-1915.9094444,0.00039999,31]
[426335628,1782321057000,-1915.9094444,0.00039999,31]
[426335627,1782321057000,-1915.9094444,0.00039999,31]
[426335695,1782321058000,-161.685748,0.00041444,120]
[426335687,1782321058000,-500.0,0.00041443,31]
[426335684,1782321058000,-249.73280919,0.00041443,31]
[426335686,1782321058000,-500.0,0.00041443,31]
[426335685,1782321058000,-481.54853304,0.00041443,31]
[426335675,1782321058000,-250.0,0.00040795,120]
[426335673,1782321058000,-250.0,0.00040712,120]
[426335678,1782321058000,-154.33698135,0.00041108,27]
[426335679,1782321058000,-500.0,0.00041196,10]
[426335676,1782321058000,-260.52,0.000408,120]
[426335696,1782321058000,-151.0,0.00041444,120]
[426335677,1782321058000,-300.0,0.00040986,120]
[426335690,1782321058000,-500.0,0.00041443,31]
[426335701,1782321058000,-209.336273,0.00041444,2]
[426335693,1782321058000,-650.0,0.00041443,31]
[426335691,1782321058000,-500.0,0.00041443,31]
[426335694,1782321058000,-500.0,0.00041443,31]
[426335689,1782321058000,-500.0,0.00041443,31]
[426335692,1782321058000,-500.0,0.00041443,31]
[426335698,1782321058000,-209.336273,0.00041444,2]
[426335709,1782321058000,-478.515624,0.00041444,120]
[426335708,1782321058000,-478.515624,0.00041444,120]
[426335700,1782321058000,-209.336273,0.00041444,2]
[426335697,1782321058000,-151.0,0.00041444,120]
[426335699,1782321058000,-209.336273,0.00041444,2]
[426335683,1782321058000,-1566.44196703,0.000414,120]
[426335703,1782321058000,-508.909018,0.00041444,120]
[426335688,1782321058000,-476.19724403,0.00041443,31]
[426335674,1782321058000,-250.01,0.00040712,120]
[426335663,1782321058000,-508.909018,0.0004,120]
[426335672,1782321058000,-260.52,0.000403,120]
[426335702,1782321058000,-508.909018,0.00041444,120]
[426335647,1782321058000,-1221.71460846,0.0004,30]
[426335645,1782321058000,-8243.49362631,0.0004,120]
[426335649,1782321058000,-200.0,0.0004,120]
[426335657,1782321058000,-209.336273,0.0004,2]
[426335648,1782321058000,-452457.45364644,0.0004,30]
[426335650,1782321058000,-160.0,0.0004,120]
[426335652,1782321058000,-151.0,0.0004,120]
[426335651,1782321058000,-15098.90537772,0.0004,120]
[426335658,1782321058000,-209.336273,0.0004,2]
[426335656,1782321058000,-151.0,0.0004,120]
[426335655,1782321058000,-151.0,0.0004,120]
[426335653,1782321058000,-151.0,0.0004,120]
[426335682,1782321058000,-347.37372895,0.000414,120]
[426335654,1782321058000,-16005.99882114,0.0004,15]
[426335660,1782321058000,-209.336273,0.0004,2]
[426335661,1782321058000,-508.909018,0.0004,120]
[426335662,1782321058000,-508.909018,0.0004,120]
[426335664,1782321058000,-508.909018,0.0004,120]
[426335667,1782321058000,-478.515624,0.0004,120]
[426335665,1782321058000,-478.515624,0.0004,120]
[426335666,1782321058000,-478.515624,0.0004,120]
[426335668,1782321058000,-478.515624,0.0004,120]
[426335669,1782321058000,-176.82896378,0.00040087,7]
[426335670,1782321058000,-347.37372895,0.000402,120]
[426335671,1782321058000,-1566.44196703,0.000402,120]
[426335680,1782321058000,-176.82896378,0.00041266,7]
[426335681,1782321058000,-260.52,0.000413,120]
[426335659,1782321058000,-209.336273,0.0004,2]
[426335707,1782321058000,-478.515624,0.00041444,120]
[426335646,1782321058000,-150.21779589,0.0004,120]
[426335705,1782321058000,-508.909018,0.00041444,120]
[426335740,1782321058000,-33774.37327,0.000475,2]
[426335741,1782321058000,-864.0,0.00047636,120]
[426335737,1782321058000,-260.52,0.000468,120]
[426335743,1782321058000,-154.33698135,0.00048274,34]
[426335746,1782321058000,-5000.0,0.0005,120]
[426335744,1782321058000,-260.64,0.000483,120]
[426335745,1782321058000,-8441.593318,0.000495,2]
[426335749,1782321058000,-401.12,0.0005,90]
[426335748,1782321058000,-401.11,0.0005,60]
[426335760,1782321058000,-3000.0,0.00051,85]
[426335751,1782321058000,-151.0,0.0005,120]
[426335750,1782321058000,-151.0,0.0005,120]
[426335759,1782321058000,-478.515624,0.0005,120]
[426335747,1782321058000,-23493.53474333,0.0005,120]
[426335752,1782321058000,-209.336273,0.0005,2]
[426335756,1782321058000,-478.515624,0.0005,120]
[426335754,1782321058000,-209.336273,0.0005,2]
[426335757,1782321058000,-478.515624,0.0005,120]
[426335755,1782321058000,-209.336273,0.0005,2]
[426335758,1782321058000,-478.515624,0.0005,120]
[426335761,1782321058000,-508.909018,0.00051,120]
[426335763,1782321058000,-508.909018,0.00051,120]
[426335764,1782321058000,-508.909018,0.00051,120]
[426335762,1782321058000,-508.909018,0.00051,120]
[426335767,1782321058000,-3000.0,0.0005103,85]
[426335768,1782321058000,-3000.0,0.0005104,85]
[426335765,1782321058000,-3000.0,0.0005101,85]
[426335706,1782321058000,-478.515624,0.00041444,120]
[426335753,1782321058000,-209.336273,0.0005,2]
[426335742,1782321058000,-260.52,0.000478,120]
[426335766,1782321058000,-3000.0,0.0005102,85]
[426335739,1782321058000,-5050.0,0.000475,120]
[426335738,1782321058000,-260.52,0.000473,120]
[426335704,1782321058000,-508.909018,0.00041444,120]
[426335718,1782321058000,-308.08246979,0.00042488,7]
[426335716,1782321058000,-260.52,0.000423,120]
[426335711,1782321058000,-151.0,0.00041444,120]
[426335714,1782321058000,-42217.966587,0.000416,2]
[426335719,1782321058000,-347.37372895,0.000426,120]
[426335721,1782321058000,-260.52,0.000428,120]
[426335713,1782321058000,-225.62563,0.00041444,120]
[426335722,1782321058000,-260.52,0.000433,120]
[426335712,1782321058000,-151.0,0.00041444,120]
[426335715,1782321058000,-260.52,0.000418,120]
[426335717,1782321058000,-176.82896378,0.00042445,7]
[426335720,1782321058000,-1566.44196703,0.000426,120]
[426335710,1782321058000,-2369041.198,0.00041444,7]
[426335735,1782321058000,-260.52,0.000458,120]
[426335729,1782321058000,-154.33698135,0.00044467,31]
[426335736,1782321058000,-260.52,0.000463,120]
[426335733,1782321058000,-5000.0,0.00045,120]
[426335728,1782321058000,-260.52,0.000443,120]
[426335724,1782321058000,-260.52,0.000438,120]
[426335730,1782321058000,-208.2,0.00044502,30]
[426335732,1782321058000,-1022.88805164,0.00045,120]
[426335726,1782321058000,-1566.44196703,0.000439,120]
[426335725,1782321058000,-347.37372895,0.000439,120]
[426335727,1782321058000,-176.8289638,0.00044017,7]
[426335734,1782321058000,-260.52,0.000453,120]
[426335723,1782321058000,-720.0,0.00043306,60]
[426335731,1782321058000,-260.52,0.000448,120]
[426335807,1782321059000,-500.0,0.00054794,120]
[426335808,1782321059000,-514.97061533,0.00054794,120]
[426335804,1782321059000,-500.0,0.00054794,120]
[426335805,1782321059000,-500.0,0.00054794,120]
[426335811,1782321059000,-500.0,0.00054794,120]
[426335806,1782321059000,-505.76169425,0.00054794,15]
[426335802,1782321059000,-509.51954123,0.00054794,120]
[426335800,1782321059000,-500.0,0.00054794,120]
[426335801,1782321059000,-500.0,0.00054794,120]
[426335792,1782321059000,-500.0,0.00054794,120]
[426335803,1782321059000,-500.0,0.00054794,120]
[426335810,1782321059000,-500.0,0.00054794,120]
[426335814,1782321059000,-571.72254904,0.00054794,120]
[426335812,1782321059000,-500.0,0.00054794,120]
[426335813,1782321059000,-500.0,0.00054794,120]
[426335818,1782321059000,-500.0,0.00054794,120]
[426335815,1782321059000,-500.0,0.00054794,120]
[426335817,1782321059000,-506.69863331,0.00054794,120]
[426335819,1782321059000,-500.0,0.00054794,120]
[426335820,1782321059000,-500.0,0.00054794,120]
[426335821,1782321059000,-500.0,0.00054794,120]
[426335816,1782321059000,-500.0,0.00054794,120]
[426335823,1782321059000,-500.0,0.00054794,120]
[426335795,1782321059000,-500.0,0.00054794,120]
[426335826,1782321059000,-500.0,0.00054794,120]
[426335809,1782321059000,-506.22350163,0.00054794,120]
[426335799,1782321059000,-500.0,0.00054794,120]
[426335782,1782321059000,-500.0,0.00054794,120]
[426335793,1782321059000,-500.0,0.00054794,120]
[426335824,1782321059000,-500.0,0.00054794,120]
[426335769,1782321059000,-3000.0,0.0005105,85]
[426335773,1782321059000,-154.33698135,0.00052528,38]
[426335771,1782321059000,-5613.361541,0.0005107,85]
[426335770,1782321059000,-3000.0,0.0005106,85]
[426335772,1782321059000,-1000.0,0.000524,120]
[426335774,1782321059000,-512.88321618,0.00052745,30]
[426335776,1782321059000,-24334.11103715,0.00054227,2]
[426335786,1782321059000,-500.0,0.00054794,120]
[426335775,1782321059000,-5204.47402158,0.00053756,28]
[426335777,1782321059000,-2000.0,0.000545,120]
[426335778,1782321059000,-1385.8787,0.00054794,120]
[426335797,1782321059000,-500.0,0.00054794,120]
[426335779,1782321059000,-670.9252,0.00054794,120]
[426335781,1782321059000,-500.0,0.00054794,120]
[426335784,1782321059000,-500.0,0.00054794,120]
[426335785,1782321059000,-500.0,0.00054794,120]
[426335780,1782321059000,-502.82408289,0.00054794,120]
[426335787,1782321059000,-509.84789725,0.00054794,120]
[426335789,1782321059000,-200.88478257,0.00054794,120]
[426335790,1782321059000,-500.0,0.00054794,120]
[426335788,1782321059000,-500.0,0.00054794,120]
[426335798,1782321059000,-500.0,0.00054794,120]
[426335796,1782321059000,-500.0,0.00054794,120]
[426335794,1782321059000,-500.0,0.00054794,120]
[426335791,1782321059000,-500.0,0.00054794,120]
[426335783,1782321059000,-500.85285198,0.00054794,120]
[426335827,1782321059000,-500.0,0.00054794,120]
[426335822,1782321059000,-507.36963069,0.00054794,14]
[426335870,1782321059000,-500.50006958,0.00054794,12]
[426335858,1782321059000,-500.0,0.00054794,120]
[426335857,1782321059000,-500.0,0.00054794,120]
[426335859,1782321059000,-500.0,0.00054794,120]
[426335860,1782321059000,-504.70921932,0.00054794,120]
[426335865,1782321059000,-1228.02,0.00054794,120]
[426335862,1782321059000,-500.0,0.00054794,120]
[426335861,1782321059000,-500.0,0.00054794,120]
[426335863,1782321059000,-500.0,0.00054794,120]
[426335867,1782321059000,-516.93810313,0.00054794,120]
[426335869,1782321059000,-500.0,0.00054794,120]
[426335868,1782321059000,-500.0,0.00054794,120]
[426335872,1782321059000,-500.0,0.00054794,120]
[426335866,1782321059000,-503.13760683,0.00054794,120]
[426335871,1782321059000,-500.0,0.00054794,120]
[426335874,1782321059000,-548.76752014,0.00054794,120]
[426335875,1782321059000,-506.09076781,0.00054794,120]
[426335876,1782321059000,-500.0,0.00054794,120]
[426335873,1782321059000,-500.0,0.00054794,120]
[426335878,1782321059000,-475.55118748,0.00054794,120]
[426335879,1782321059000,-500.0,0.00054794,120]
[426335881,1782321059000,-500.0,0.00054794,120]
[426335882,1782321059000,-500.0,0.00054794,120]
[426335880,1782321059000,-396.47664484,0.00054794,120]
[426335883,1782321059000,-506.29385716,0.00054794,120]
[426335825,1782321059000,-500.0,0.00054794,120]
[426335884,1782321059000,-500.0,0.00054794,120]
[426335877,1782321059000,-500.0,0.00054794,120]
[426335856,1782321059000,-500.0,0.00054794,7]
[426335864,1782321059000,-501.82378282,0.00054794,120]
[426335853,1782321059000,-500.0,0.00054794,120]
[426335828,1782321059000,-500.0,0.00054794,120]
[426335829,1782321059000,-402.35990483,0.00054794,120]
[426335830,1782321059000,-500.0,0.00054794,120]
[426335832,1782321059000,-500.0,0.00054794,120]
[426335831,1782321059000,-500.0,0.00054794,120]
[426335840,1782321059000,-500.0,0.00054794,120]
[426335842,1782321059000,-500.0,0.00054794,120]
[426335835,1782321059000,-503.86304401,0.00054794,2]
[426335855,1782321059000,-506.40092623,0.00054794,120]
[426335841,1782321059000,-168.52846646,0.00054794,120]
[426335833,1782321059000,-500.0,0.00054794,120]
[426335837,1782321059000,-500.0,0.00054794,120]
[426335838,1782321059000,-500.0,0.00054794,120]
[426335839,1782321059000,-500.0,0.00054794,120]
[426335834,1782321059000,-500.0,0.00054794,120]
[426335843,1782321059000,-524.43777367,0.00054794,120]
[426335852,1782321059000,-504.72651145,0.00054794,120]
[426335836,1782321059000,-500.0,0.00054794,120]
[426335850,1782321059000,-1249.46,0.00054794,120]
[426335851,1782321059000,-510.12230422,0.00054794,120]
[426335849,1782321059000,-505.26721777,0.00054794,120]
[426335854,1782321059000,-500.0,0.00054794,120]
[426335846,1782321059000,-584.71913947,0.00054794,120]
[426335844,1782321059000,-500.0,0.00054794,120]
[426335845,1782321059000,-500.0,0.00054794,120]
[426335847,1782321059000,-504.26123636,0.00054794,120]
[426335848,1782321059000,-511.318745,0.00054794,120]
[426335928,1782321060000,-503.17192235,0.00054794,120]
[426335921,1782321060000,-1000.0,0.00054794,120]
[426335929,1782321060000,-500.0,0.00054794,120]
[426335919,1782321060000,-500.0,0.00054794,120]
[426335926,1782321060000,-1000.0,0.00054794,120]
[426335923,1782321060000,-1000.0,0.00054794,120]
[426335920,1782321060000,-1413.226884,0.00054794,120]
[426335927,1782321060000,-1000.0,0.00054794,120]
[426335914,1782321060000,-500.0,0.00054794,120]
[426335918,1782321060000,-500.0,0.00054794,120]
[426335924,1782321060000,-1000.0,0.00054794,120]
[426335922,1782321060000,-1000.0,0.00054794,120]
[426335930,1782321060000,-500.0,0.00054794,120]
[426335943,1782321060000,-240.360255,0.00054794,120]
[426335925,1782321060000,-1000.0,0.00054794,120]
[426335932,1782321060000,-504.86856479,0.00054794,120]
[426335933,1782321060000,-625.0,0.00054794,6]
[426335934,1782321060000,-500.0,0.00054794,120]
[426335938,1782321060000,-507.68503116,0.00054794,120]
[426335939,1782321060000,-500.0,0.00054794,120]
[426335936,1782321060000,-502.21406201,0.00054794,120]
[426335935,1782321060000,-509.24106111,0.00054794,120]
[426335942,1782321060000,-151.0,0.00054794,120]
[426335940,1782321060000,-151.0,0.00054794,120]
[426335937,1782321060000,-500.0,0.00054794,120]
[426335915,1782321060000,-501.16187289,0.00054794,120]
[426335931,1782321060000,-512.97548041,0.00054794,120]
[426335909,1782321060000,-500.0,0.00054794,120]
[426335885,1782321060000,-511.45169021,0.00054794,120]
[426335913,1782321060000,-512.23308455,0.00054794,120]
[426335891,1782321060000,-500.0,0.00054794,120]
[426335889,1782321060000,-501.30095042,0.00054794,120]
[426335886,1782321060000,-500.0,0.00054794,120]
[426335890,1782321060000,-500.0,0.00054794,2]
[426335887,1782321060000,-500.0,0.00054794,120]
[426335888,1782321060000,-500.0,0.00054794,120]
[426335892,1782321060000,-500.0,0.00054794,120]
[426335898,1782321060000,-500.0,0.00054794,120]
[426335897,1782321060000,-500.0,0.00054794,120]
[426335896,1782321060000,-462.1642659,0.00054794,120]
[426335894,1782321060000,-500.0,0.00054794,120]
[426335895,1782321060000,-508.42879003,0.00054794,120]
[426335899,1782321060000,-500.0,0.00054794,120]
[426335893,1782321060000,-501.21798226,0.00054794,120]
[426335902,1782321060000,-505.57672614,0.00054794,120]
[426335900,1782321060000,-500.0,0.00054794,120]
[426335901,1782321060000,-500.0,0.00054794,120]
[426335903,1782321060000,-500.0,0.00054794,120]
[426335904,1782321060000,-637.44708431,0.00054794,120]
[426335910,1782321060000,-500.0,0.00054794,120]
[426335906,1782321060000,-500.0,0.00054794,120]
[426335916,1782321060000,-594.31,0.00054794,120]
[426335908,1782321060000,-625.0,0.00054794,120]
[426335907,1782321060000,-500.0,0.00054794,120]
[426335905,1782321060000,-517.37030798,0.00054794,120]
[426335917,1782321060000,-498.33144711,0.00054794,120]
[426335912,1782321060000,-500.0,0.00054794,120]
[426335911,1782321060000,-512.83411564,0.00054794,120]
[426335946,1782321060000,-503.75127736,0.00054794,120]
[426335941,1782321060000,-151.0,0.00054794,120]
[426335947,1782321060000,-500.0,0.00054794,120]
[426335977,1782321060000,-209.336273,0.00054794,2]
[426335974,1782321060000,-209.336273,0.00054794,2]
[426335978,1782321060000,-500.0,0.00054794,120]
[426335979,1782321060000,-209.336273,0.00054794,2]
[426335971,1782321060000,-500.0,0.00054794,120]
[426335984,1782321060000,-500.0,0.00054794,120]
[426335983,1782321060000,-500.0,0.00054794,120]
[426335985,1782321060000,-573.75624168,0.00054794,120]
[426335986,1782321060000,-500.0,0.00054794,120]
[426335991,1782321060000,-511.22546512,0.00054794,90]
[426335987,1782321060000,-506.6254689,0.00054794,14]
[426335988,1782321060000,-502.53850022,0.00054794,120]
[426335989,1782321060000,-500.0,0.00054794,120]
[426335990,1782321060000,-500.0,0.00054794,120]
[426335992,1782321060000,-500.0,0.00054794,120]
[426335993,1782321060000,-464.74706679,0.00054794,120]
[426335994,1782321060000,-500.0,0.00054794,120]
[426335998,1782321060000,-500.0,0.00054794,120]
[426335999,1782321060000,-500.0,0.00054794,120]
[426335996,1782321060000,-500.0,0.00054794,30]
[426335997,1782321060000,-500.0,0.00054794,120]
[426336000,1782321060000,-500.0,0.00054794,120]
[426335995,1782321060000,-509.91409044,0.00054794,120]
[426336001,1782321060000,-500.0,0.00054794,120]
[426336002,1782321060000,-509.76884888,0.00054794,120]
[426336003,1782321060000,-500.0,0.00054794,120]
[426336004,1782321060000,-500.0,0.00054794,120]
[426335980,1782321060000,-209.336273,0.00054794,2]
[426335982,1782321060000,-209.336269,0.00054794,2]
[426335945,1782321060000,-876.42,0.00054794,120]
[426335981,1782321060000,-209.336273,0.00054794,2]
[426335976,1782321060000,-209.336273,0.00054794,2]
[426335948,1782321060000,-500.0,0.00054794,120]
[426335954,1782321060000,-331.76373175,0.00054794,120]
[426335950,1782321060000,-500.0,0.00054794,120]
[426335953,1782321060000,-500.0,0.00054794,120]
[426335944,1782321060000,-501.38212157,0.00054794,120]
[426335955,1782321060000,-500.0,0.00054794,120]
[426335952,1782321060000,-529.67361911,0.00054794,120]
[426335951,1782321060000,-500.0,0.00054794,120]
[426335957,1782321060000,-500.0,0.00054794,120]
[426335956,1782321060000,-509.30552401,0.00054794,120]
[426335968,1782321060000,-251.31891258,0.00054794,120]
[426335965,1782321060000,-500.0,0.00054794,120]
[426335949,1782321060000,-500.0,0.00054794,120]
[426335966,1782321060000,-543.01340795,0.00054794,120]
[426335967,1782321060000,-500.0,0.00054794,120]
[426335975,1782321060000,-503.45134079,0.00054794,120]
[426335973,1782321060000,-209.336273,0.00054794,2]
[426335970,1782321060000,-500.0,0.00054794,120]
[426335961,1782321060000,-536.22789104,0.00054794,120]
[426335964,1782321060000,-514.55893043,0.00054794,120]
[426335960,1782321060000,-522.0239396,0.00054794,120]
[426335972,1782321060000,-500.0,0.00054794,120]
[426335963,1782321060000,-500.0,0.00054794,14]
[426335959,1782321060000,-500.0,0.00054794,120]
[426335958,1782321060000,-500.0,0.00054794,120]
[426335969,1782321060000,-511.49375867,0.00054794,120]
[426335962,1782321060000,-512.32699163,0.00054794,120]
[426336044,1782321061000,-508.909018,0.00054794,120]
[426336047,1782321061000,-508.909018,0.00054794,120]
[426336043,1782321061000,-515.42554991,0.00054794,120]
[426336039,1782321061000,-510.80591194,0.00054794,120]
[426336042,1782321061000,-508.909018,0.00054794,120]
[426336037,1782321061000,-517.07894001,0.00054794,120]
[426336052,1782321061000,-502.50564363,0.00054794,120]
[426336051,1782321061000,-511.06960451,0.00054794,120]
[426336040,1782321061000,-508.909018,0.00054794,120]
[426336050,1782321061000,-528.86272721,0.00054794,120]
[426336045,1782321061000,-508.909018,0.00054794,120]
[426336041,1782321061000,-508.909018,0.00054794,120]
[426336046,1782321061000,-522.8016029,0.00054794,120]
[426336065,1782321061000,-500.0,0.00054794,120]
[426336049,1782321061000,-508.909024,0.00054794,120]
[426336053,1782321061000,-524.20701063,0.00054794,120]
[426336055,1782321061000,-507.63646256,0.00054794,120]
[426336063,1782321061000,-490.84659924,0.00054794,120]
[426336059,1782321061000,-509.80673162,0.00054794,120]
[426336056,1782321061000,-501.48984295,0.00054794,120]
[426336058,1782321061000,-509.37025303,0.00054794,120]
[426336057,1782321061000,-515.21623461,0.00054794,120]
[426336062,1782321061000,-500.0,0.00054794,120]